fUSD/lending_fUSD_20260620
["ID","MTS","AMOUNT","RATE_DAILY","PERIOD"]
[425818015,1781933448000,-599.60298507,0.00032759,30]
[425818019,1781933448000,-6452.214,0.00032759,30]
[425818022,1781933448000,-384.78176723,0.00032759,30]
[425818032,1781933448000,-151.0,0.00032759,30]
[425818009,1781933448000,-8372.26950849,0.00032759,30]
[425818091,1781933449000,-747.80937859,0.00032759,30]
[425818087,1781933449000,-542.68886294,0.00032759,30]
[425818085,1781933449000,-209.40437684,0.00032759,30]
[425818089,1781933449000,-1000.0,0.00032759,30]
[425818082,1781933449000,-151.0,0.00032759,30]
[425818093,1781933449000,-151.0,0.00032759,30]
[425818084,1781933449000,-402.88228263,0.00032759,30]
[425818081,1781933449000,-200.0,0.00032759,30]
[425818077,1781933449000,-668.65185756,0.00032759,30]
[425818083,1781933449000,-500.0,0.00032759,30]
[425818086,1781933449000,-251.11897888,0.00032759,30]
[425818092,1781933449000,-151.0,0.00032759,30]
[425818100,1781933449000,-286.78306349,0.00032759,30]
[425818090,1781933449000,-417.06247972,0.00032759,30]
[425818104,1781933449000,-217.15233878,0.00032759,30]
[425818097,1781933449000,-152.0,0.00032759,30]
[425818099,1781933449000,-402.88228263,0.00032759,30]
[425818094,1781933449000,-151.0,0.00032759,30]
[425818096,1781933449000,-693.39197629,0.00032759,30]
[425818098,1781933449000,-260.4103811,0.00032759,30]
[425818103,1781933449000,-384.78176723,0.00032759,30]
[425818102,1781933449000,-500.0,0.00032759,30]
[425818101,1781933449000,-542.68886294,0.00032759,30]
[425818095,1781933449000,-151.0,0.00032759,30]
[425818088,1781933449000,-500.0,0.00032759,30]
[425818079,1781933449000,-204.14380155,0.00032759,30]
[425818054,1781933449000,-417.06247972,0.00032759,30]
[425818078,1781933449000,-152.0,0.00032759,30]
[425818056,1781933449000,-500.0,0.00032759,30]
[425818052,1781933449000,-151.0,0.00032759,30]
[425818053,1781933449000,-402.88228263,0.00032759,30]
[425818060,1781933449000,-542.68886294,0.00032759,30]
[425818055,1781933449000,-233.5188934,0.00032759,30]
[425818058,1781933449000,-644.79446245,0.00032759,30]
[425818059,1781933449000,-152.0,0.00032759,30]
[425818057,1781933449000,-151.0,0.00032759,30]
[425818061,1781933449000,-194.72792766,0.00032759,30]
[425818063,1781933449000,-384.78176723,0.00032759,30]
[425818065,1781933449000,-203.11391667,0.00032759,30]
[425818080,1781933449000,-384.78176723,0.00032759,30]
[425818064,1781933449000,-151.0,0.00032759,30]
[425818066,1781933449000,-500.0,0.00032759,30]
[425818069,1781933449000,-242.15909246,0.00032759,30]
[425818068,1781933449000,-402.88228263,0.00032759,30]
[425818070,1781933449000,-1000.0,0.00032759,30]
[425818067,1781933449000,-201.93286098,0.00032759,30]
[425818071,1781933449000,-500.0,0.00032759,30]
[425818073,1781933449000,-151.0,0.00032759,30]
[425818072,1781933449000,-721.12765534,0.00032759,30]
[425818074,1781933449000,-151.0,0.00032759,30]
[425818075,1781933449000,-417.06247972,0.00032759,30]
[425818076,1781933449000,-151.0,0.00032759,30]
[425818062,1781933449000,-200.0,0.00032759,30]
[425818105,1781933449000,-417.06247972,0.00032759,30]
[425818106,1781933449000,-500.0,0.00032759,30]
[425818107,1781933449000,-1000.0,0.00032759,30]
[425818136,1781933449000,-833.92535152,0.00032759,30]
[425818140,1781933449000,-151.0,0.00032759,30]
[425818141,1781933449000,-290.3986294,0.00032759,30]
[425818142,1781933449000,-773.24136889,0.00032759,30]
[425818145,1781933449000,-152.0,0.00032759,30]
[425818146,1781933449000,-151.0,0.00032759,30]
[425818144,1781933449000,-542.68886312,0.00032759,30]
[425818143,1781933449000,-384.78176723,0.00032759,30]
[425818139,1781933449000,-151.0,0.00032759,30]
[425818148,1781933449000,-500.0,0.00032759,30]
[425818147,1781933449000,-233.5188934,0.00032759,30]
[425818138,1781933449000,-500.0,0.00032759,30]
[425818149,1781933449000,-1055.70635562,0.00032759,30]
[425818152,1781933449000,-500.0,0.00032759,30]
[425818153,1781933449000,-301.14337869,0.00032759,30]
[425818151,1781933449000,-151.0,0.00032759,30]
[425818159,1781933449000,-500.0,0.00032759,30]
[425818154,1781933449000,-151.0,0.00032759,30]
[425818157,1781933449000,-152.0,0.00032759,30]
[425818160,1781933449000,-500.0,0.00032759,30]
[425818156,1781933449000,-384.78176723,0.00032759,30]
[425818158,1781933449000,-151.0,0.00032759,30]
[425818155,1781933449000,-801.85129954,0.00032759,30]
[425818161,1781933449000,-151.0,0.00032759,30]
[425818150,1781933449000,-864.78058953,0.00032759,30]
[425818133,1781933449000,-500.0,0.00032759,30]
[425818109,1781933449000,-151.0,0.00032759,30]
[425818135,1781933449000,-1000.0,0.00032759,30]
[425818115,1781933449000,-719.04747942,0.00032759,30]
[425818114,1781933449000,-542.68886294,0.00032759,30]
[425818108,1781933449000,-775.4783256,0.00032759,30]
[425818110,1781933449000,-151.0,0.00032759,30]
[425818111,1781933449000,-402.88228263,0.00032759,30]
[425818113,1781933449000,-151.0,0.00032759,30]
[425818112,1781933449000,-270.0455652,0.00032759,30]
[425818137,1781933449000,-151.0,0.00032759,30]
[425818118,1781933449000,-500.0,0.00032759,30]
[425818119,1781933449000,-384.78176723,0.00032759,30]
[425818121,1781933449000,-151.0,0.00032759,30]
[425818122,1781933449000,-1000.0,0.00032759,30]
[425818116,1781933449000,-152.0,0.00032759,30]
[425818123,1781933449000,-804.17102365,0.00032759,30]
[425818120,1781933449000,-225.18697532,0.00032759,30]
[425818130,1781933449000,-151.0,0.00032759,30]
[425818132,1781933449000,-280.03725111,0.00032759,30]
[425818134,1781933449000,-542.68886294,0.00032759,30]
[425818127,1781933449000,-151.0,0.00032759,30]
[425818131,1781933449000,-151.0,0.00032759,30]
[425818129,1781933449000,-152.0,0.00032759,30]
[425818117,1781933449000,-417.06247982,0.00032759,30]
[425818125,1781933449000,-151.0,0.00032759,30]
[425818126,1781933449000,-500.0,0.00032759,30]
[425818124,1781933449000,-402.88228275,0.00032759,30]
[425818128,1781933449000,-745.65223615,0.00032759,30]
[425818195,1781933450000,-500.0,0.00032759,30]
[425818201,1781933450000,-961.58486558,0.00032759,30]
[425818196,1781933450000,-152.0,0.00032759,30]
[425818197,1781933450000,-151.0,0.00032759,30]
[425818187,1781933450000,-500.0,0.00032759,30]
[425818199,1781933450000,-151.0,0.00032759,30]
[425818189,1781933450000,-927.27566594,0.00032759,30]
[425818192,1781933450000,-151.0,0.00032759,30]
[425818188,1781933450000,-384.78176723,0.00032759,30]
[425818202,1781933450000,-384.78176723,0.00032759,30]
[425818198,1781933450000,-1037.05004583,0.00032759,30]
[425818213,1781933450000,-400.0,0.0003278,2]
[425818204,1781933450000,-151.0,0.00032759,30]
[425818203,1781933450000,-500.0,0.00032759,30]
[425818205,1781933450000,-151.0,0.00032759,30]
[425818207,1781933450000,-300.0,0.0003276,10]
[425818212,1781933450000,-400.0,0.00032776,2]
[425818208,1781933450000,-150.0,0.00032761,30]
[425818209,1781933450000,-151.358337,0.00032761,7]
[425818206,1781933450000,-300.0,0.0003276,10]
[425818210,1781933450000,-525.765585,0.00032761,2]
[425818214,1781933450000,-400.0,0.0003278,2]
[425818216,1781933450000,-400.0,0.0003279,2]
[425818185,1781933450000,-151.0,0.00032759,30]
[425818200,1781933450000,-151.0,0.00032759,30]
[425818183,1781933450000,-500.0,0.00032759,30]
[425818178,1781933450000,-384.78176723,0.00032759,30]
[425818190,1781933450000,-500.0,0.00032759,30]
[425818215,1781933450000,-400.0,0.00032784,2]
[425818170,1781933450000,-384.78176723,0.00032759,30]
[425818165,1781933450000,-152.0,0.00032759,30]
[425818169,1781933450000,-151.0,0.00032759,30]
[425818168,1781933450000,-151.0,0.00032759,30]
[425818164,1781933450000,-831.51979762,0.00032759,30]
[425818167,1781933450000,-500.0,0.00032759,30]
[425818163,1781933450000,-151.0,0.00032759,30]
[425818162,1781933450000,-896.77747134,0.00032759,30]
[425818166,1781933450000,-151.0,0.00032759,30]
[425818177,1781933450000,-151.0,0.00032759,30]
[425818186,1781933450000,-151.0,0.00032759,30]
[425818172,1781933450000,-500.0,0.00032759,30]
[425818180,1781933450000,-894.19061325,0.00032759,30]
[425818182,1781933450000,-500.0,0.00032759,30]
[425818181,1781933450000,-152.0,0.00032759,30]
[425818179,1781933450000,-151.0,0.00032759,30]
[425818174,1781933450000,-319.16129845,0.00032759,30]
[425818175,1781933450000,-500.0,0.00032759,30]
[425818176,1781933450000,-929.95823778,0.00032759,30]
[425818184,1781933450000,-964.36669258,0.00032759,30]
[425818194,1781933450000,-384.78176723,0.00032759,30]
[425818193,1781933450000,-1000.04826021,0.00032759,30]
[425818191,1781933450000,-152.0,0.00032759,30]
[425818173,1781933450000,-151.0,0.00032759,30]
[425818171,1781933450000,-862.28603014,0.00032759,30]
[425818211,1781933450000,-5042.41851303,0.00032761,2]
[425818221,1781933450000,-505.0,0.0003283,8]
[425818248,1781933450000,-151.0,0.00032908,2]
[425818250,1781933450000,-151.0,0.00032918,2]
[425818246,1781933450000,-500.0,0.00032907,30]
[425818251,1781933450000,-150.0,0.00032922,30]
[425818253,1781933450000,-144450.69559,0.00032923,2]
[425818258,1781933450000,-1000.0,0.00032923,2]
[425818257,1781933450000,-155.312827,0.00032923,7]
[425818252,1781933450000,-150.0,0.00032922,30]
[425818254,1781933450000,-26470.1176601,0.00032923,2]
[425818261,1781933450000,-1000.0,0.00032923,2]
[425818256,1781933450000,-151.0,0.00032923,7]
[425818259,1781933450000,-1000.0,0.00032923,2]
[425818260,1781933450000,-1000.0,0.00032923,2]
[425818262,1781933450000,-1024.804243,0.00032923,2]
[425818272,1781933450000,-331.0,0.00032926,30]
[425818263,1781933450000,-416.249681,0.00032923,7]
[425818264,1781933450000,-416.249681,0.00032923,7]
[425818265,1781933450000,-416.249681,0.00032923,7]
[425818269,1781933450000,-788.0,0.00032926,30]
[425818267,1781933450000,-158.0,0.00032926,30]
[425818268,1781933450000,-511.0,0.00032926,30]
[425818270,1781933450000,-154.0,0.00032926,30]
[425818271,1781933450000,-155.0,0.00032926,30]
[425818266,1781933450000,-416.249681,0.00032923,7]
[425818218,1781933450000,-310.0,0.000328,2]
[425818249,1781933450000,-151.88,0.00032918,2]
[425818244,1781933450000,-573.61,0.00032903,2]
[425818255,1781933450000,-32231.3068406,0.00032923,2]
[425818242,1781933450000,-642.39,0.00032903,2]
[425818243,1781933450000,-482.31,0.00032903,2]
[425818225,1781933450000,-604.63,0.00032871,120]
[425818223,1781933450000,-400.0,0.00032853,2]
[425818226,1781933450000,-1000.0,0.00032875,2]
[425818222,1781933450000,-400.0,0.00032838,2]
[425818224,1781933450000,-152.0,0.00032871,8]
[425818219,1781933450000,-387.1238796,0.00032816,30]
[425818228,1781933450000,-500.0,0.00032876,120]
[425818217,1781933450000,-150.0,0.00032794,30]
[425818229,1781933450000,-500.0,0.00032876,120]
[425818227,1781933450000,-500.0,0.00032875,30]
[425818234,1781933450000,-500.0,0.00032876,120]
[425818230,1781933450000,-500.0,0.00032876,120]
[425818220,1781933450000,-400.0,0.00032826,2]
[425818233,1781933450000,-500.0,0.00032876,120]
[425818232,1781933450000,-500.0,0.00032876,120]
[425818231,1781933450000,-500.0,0.00032876,120]
[425818236,1781933450000,-654.15,0.00032877,2]
[425818238,1781933450000,-150.0,0.00032894,30]
[425818240,1781933450000,-3543.0,0.00032898,5]
[425818239,1781933450000,-4429.0,0.00032898,5]
[425818235,1781933450000,-1000.0,0.00032877,10]
[425818237,1781933450000,-400.0,0.00032888,2]
[425818245,1781933450000,-644.29,0.00032904,2]
[425818241,1781933450000,-400.0,0.00032901,2]
[425818247,1781933450000,-3605.95,0.00032908,2]
[425818304,1781933451000,-225.0,0.00032986,2]
[425818302,1781933451000,-225.0,0.00032986,2]
[425818309,1781933451000,-225.0,0.00032986,2]
[425818305,1781933451000,-225.0,0.00032986,2]
[425818312,1781933451000,-225.0,0.00032986,2]
[425818307,1781933451000,-225.0,0.00032986,2]
[425818310,1781933451000,-225.0,0.00032986,2]
[425818306,1781933451000,-225.0,0.00032986,2]
[425818308,1781933451000,-225.0,0.00032986,2]
[425818311,1781933451000,-225.0,0.00032986,2]
[425818313,1781933451000,-225.0,0.00032986,2]
[425818303,1781933451000,-225.0,0.00032986,2]
[425818315,1781933451000,-225.0,0.00032986,2]
[425818321,1781933451000,-500.0,0.00032999,120]
[425818320,1781933451000,-349.62429559,0.00032998,2]
[425818316,1781933451000,-353.0,0.00032986,2]
[425818317,1781933451000,-400.0,0.00032992,2]
[425818323,1781933451000,-500.0,0.00032999,120]
[425818319,1781933451000,-176.39609392,0.00032996,2]
[425818322,1781933451000,-500.0,0.00032999,120]
[425818318,1781933451000,-150.0,0.00032993,30]
[425818327,1781933451000,-1000.0,0.00032999,120]
[425818324,1781933451000,-150.0,0.00032999,120]
[425818335,1781933451000,-22499.99,0.00033,2]
[425818325,1781933451000,-150.93131032,0.00032999,120]
[425818314,1781933451000,-225.0,0.00032986,2]
[425818299,1781933451000,-225.0,0.00032986,2]
[425818273,1781933451000,-226.0,0.00032926,30]
[425818326,1781933451000,-1000.0,0.00032999,120]
[425818279,1781933451000,-250.0,0.00032932,27]
[425818281,1781933451000,-205.0,0.0003294,30]
[425818276,1781933451000,-341.0,0.00032926,30]
[425818278,1781933451000,-250.0,0.00032932,27]
[425818277,1781933451000,-250.0,0.00032932,27]
[425818274,1781933451000,-153.0,0.00032926,30]
[425818280,1781933451000,-357.05,0.00032932,27]
[425818275,1781933451000,-158.0,0.00032926,30]
[425818282,1781933451000,-400.0,0.0003294,2]
[425818283,1781933451000,-153.91,0.0003296,30]
[425818289,1781933451000,-225.0,0.00032986,2]
[425818288,1781933451000,-225.0,0.00032986,2]
[425818286,1781933451000,-985.55534566,0.0003297,2]
[425818285,1781933451000,-500.0,0.00032967,2]
[425818292,1781933451000,-225.0,0.00032986,2]
[425818287,1781933451000,-225.0,0.00032986,2]
[425818291,1781933451000,-225.0,0.00032986,2]
[425818290,1781933451000,-225.0,0.00032986,2]
[425818293,1781933451000,-225.0,0.00032986,2]
[425818284,1781933451000,-163.74489571,0.00032967,2]
[425818295,1781933451000,-225.0,0.00032986,2]
[425818296,1781933451000,-225.0,0.00032986,2]
[425818297,1781933451000,-225.0,0.00032986,2]
[425818294,1781933451000,-225.0,0.00032986,2]
[425818298,1781933451000,-225.0,0.00032986,2]
[425818300,1781933451000,-225.0,0.00032986,2]
[425818336,1781933451000,-15000.0,0.00033,2]
[425818301,1781933451000,-225.0,0.00032986,2]
[425818329,1781933451000,-500.0,0.00032999,30]
[425818359,1781933451000,-12499.94,0.00033,2]
[425818363,1781933451000,-12499.98,0.00033,2]
[425818365,1781933451000,-15000.0,0.00033,2]
[425818367,1781933451000,-22500.0,0.00033,2]
[425818366,1781933451000,-12500.0,0.00033,2]
[425818364,1781933451000,-10000.0,0.00033,2]
[425818368,1781933451000,-18500.6,0.00033,2]
[425818369,1781933451000,-800.0,0.00033,2]
[425818374,1781933451000,-200.0,0.00033,2]
[425818370,1781933451000,-22499.98,0.00033,2]
[425818375,1781933451000,-214.37,0.00033,2]
[425818371,1781933451000,-10873.71,0.00033,2]
[425818373,1781933451000,-4879.09520889,0.00033,2]
[425818372,1781933451000,-9999.97,0.00033,2]
[425818379,1781933451000,-10000.0,0.00033,2]
[425818381,1781933451000,-800.0,0.00033,12]
[425818385,1781933451000,-800.0,0.00033,12]
[425818377,1781933451000,-22500.0,0.00033,2]
[425818382,1781933451000,-800.0,0.00033,12]
[425818378,1781933451000,-10000.0,0.00033,2]
[425818376,1781933451000,-15000.0,0.00033,2]
[425818386,1781933451000,-800.0,0.00033,12]
[425818383,1781933451000,-800.0,0.00033,12]
[425818380,1781933451000,-78806.88763855,0.00033,2]
[425818328,1781933451000,-1000.0,0.00032999,120]
[425818358,1781933451000,-9999.99,0.00033,2]
[425818360,1781933451000,-22499.99,0.00033,2]
[425818384,1781933451000,-800.0,0.00033,12]
[425818362,1781933451000,-8299.56,0.00033,2]
[425818355,1781933451000,-9999.97,0.00033,2]
[425818330,1781933451000,-526.7379631,0.00032999,30]
[425818334,1781933451000,-9999.98,0.00033,2]
[425818332,1781933451000,-15000.0,0.00033,2]
[425818333,1781933451000,-12500.0,0.00033,2]
[425818347,1781933451000,-6791.05,0.00033,2]
[425818346,1781933451000,-15000.0,0.00033,2]
[425818345,1781933451000,-22499.99,0.00033,2]
[425818342,1781933451000,-22500.0,0.00033,2]
[425818338,1781933451000,-22500.0,0.00033,2]
[425818340,1781933451000,-9999.98,0.00033,2]
[425818337,1781933451000,-12500.0,0.00033,2]
[425818349,1781933451000,-22500.0,0.00033,2]
[425818331,1781933451000,-9999.97,0.00033,2]
[425818339,1781933451000,-12500.0,0.00033,2]
[425818350,1781933451000,-15000.0,0.00033,2]
[425818361,1781933451000,-15962.29,0.00033,2]
[425818356,1781933451000,-22499.99,0.00033,2]
[425818354,1781933451000,-12500.0,0.00033,2]
[425818352,1781933451000,-22500.0,0.00033,2]
[425818351,1781933451000,-12500.0,0.00033,2]
[425818343,1781933451000,-15000.0,0.00033,2]
[425818341,1781933451000,-22438.92,0.00033,2]
[425818348,1781933451000,-9999.99,0.00033,2]
[425818344,1781933451000,-9999.99,0.00033,2]
[425818357,1781933451000,-12499.98,0.00033,2]
[425818353,1781933451000,-15000.0,0.00033,2]
[425818419,1781933452000,-15000.0,0.0003307,2]
[425818420,1781933452000,-15000.0,0.0003307,2]
[425818429,1781933452000,-416.249681,0.00033087,7]
[425818417,1781933452000,-15000.0,0.0003307,2]
[425818416,1781933452000,-15000.0,0.0003307,2]
[425818418,1781933452000,-15000.0,0.0003307,2]
[425818415,1781933452000,-15000.0,0.0003307,2]
[425818412,1781933452000,-500.0,0.00033069,120]
[425818413,1781933452000,-1000.0,0.00033069,120]
[425818414,1781933452000,-700.0,0.0003307,2]
[425818430,1781933452000,-416.249674,0.00033087,7]
[425818424,1781933452000,-404.0,0.0003308,60]
[425818422,1781933452000,-450.0,0.0003308,60]
[425818423,1781933452000,-450.0,0.0003308,60]
[425818421,1781933452000,-1772.79305329,0.00033072,2]
[425818432,1781933452000,-12500.0,0.00033088,2]
[425818431,1781933452000,-19048.6,0.00033088,2]
[425818426,1781933452000,-1000.0,0.00033087,120]
[425818411,1781933452000,-152.0,0.00033051,30]
[425818427,1781933452000,-416.249681,0.00033087,7]
[425818428,1781933452000,-416.249681,0.00033087,7]
[425818410,1781933452000,-357.0,0.0003303,30]
[425818391,1781933452000,-151.0,0.00033,7]
[425818407,1781933452000,-586.29,0.00033014,2]
[425818425,1781933452000,-500.0,0.00033087,120]
[425818387,1781933452000,-800.0,0.00033,12]
[425818398,1781933452000,-9110.97,0.00033,2]
[425818394,1781933452000,-154.02791062,0.00033,7]
[425818396,1781933452000,-252.714214,0.00033,10]
[425818388,1781933452000,-800.0,0.00033,12]
[425818389,1781933452000,-15000.0,0.00033,2]
[425818397,1781933452000,-151.49579461,0.00033,2]
[425818390,1781933452000,-1665.51,0.00033,2]
[425818395,1781933452000,-166.0,0.00033,7]
[425818392,1781933452000,-200.0,0.00033,2]
[425818393,1781933452000,-154.58257037,0.00033,7]
[425818400,1781933452000,-200.566238,0.00033,7]
[425818403,1781933452000,-12500.0,0.00033,2]
[425818401,1781933452000,-200.0,0.00033,2]
[425818399,1781933452000,-22500.0,0.00033,2]
[425818402,1781933452000,-416.249681,0.00033,7]
[425818409,1781933452000,-153.30247431,0.00033027,7]
[425818406,1781933452000,-416.249681,0.00033,7]
[425818408,1781933452000,-165.0,0.0003302,60]
[425818405,1781933452000,-416.249681,0.00033,7]
[425818404,1781933452000,-416.249681,0.00033,7]
[425818436,1781933452000,-18268.23,0.00033088,2]
[425818434,1781933452000,-22499.95,0.00033088,2]
[425818435,1781933452000,-12499.98,0.00033088,2]
[425818454,1781933452000,-1077.96526902,0.00033113,2]
[425818464,1781933452000,-15000.0,0.0003314,2]
[425818463,1781933452000,-193.0,0.0003314,60]
[425818466,1781933452000,-15000.0,0.0003314,2]
[425818467,1781933452000,-500.0,0.0003314,60]
[425818465,1781933452000,-4958.72,0.0003314,2]
[425818471,1781933452000,-1720.62261392,0.00033158,2]
[425818468,1781933452000,-15000.0,0.0003314,2]
[425818469,1781933452000,-1077.96526902,0.00033145,2]
[425818473,1781933452000,-700.0,0.0003317,2]
[425818461,1781933452000,-336.0,0.0003314,60]
[425818472,1781933452000,-163.84,0.00033161,7]
[425818474,1781933452000,-700.0,0.0003317,2]
[425818478,1781933452000,-22500.0,0.00033175,2]
[425818480,1781933452000,-150.0,0.00033193,30]
[425818477,1781933452000,-12500.0,0.00033175,2]
[425818481,1781933452000,-500.0,0.00033199,120]
[425818482,1781933452000,-500.0,0.00033199,120]
[425818476,1781933452000,-22500.0,0.00033175,2]
[425818479,1781933452000,-289.0,0.00033178,2]
[425818483,1781933452000,-1000.0,0.00033199,120]
[425818433,1781933452000,-22499.94,0.00033088,2]
[425818470,1781933452000,-4178.53,0.00033156,2]
[425818457,1781933452000,-251.22367778,0.00033123,120]
[425818475,1781933452000,-8875.14,0.00033175,2]
[425818462,1781933452000,-150.0,0.0003314,60]
[425818437,1781933452000,-8928.55,0.00033088,2]
[425818438,1781933452000,-22500.0,0.00033088,2]
[425818440,1781933452000,-22500.0,0.00033088,2]
[425818439,1781933452000,-12500.0,0.00033088,2]
[425818441,1781933452000,-150.0,0.00033093,30]
[425818451,1781933452000,-150.0,0.00033096,5]
[425818446,1781933452000,-150.0,0.00033096,5]
[425818450,1781933452000,-150.0,0.00033096,5]
[425818443,1781933452000,-150.0,0.00033096,5]
[425818445,1781933452000,-150.0,0.00033096,5]
[425818444,1781933452000,-150.0,0.00033096,5]
[425818447,1781933452000,-150.0,0.00033096,5]
[425818442,1781933452000,-150.0,0.00033096,5]
[425818448,1781933452000,-150.0,0.00033096,5]
[425818449,1781933452000,-150.0,0.00033096,5]
[425818459,1781933452000,-263.0,0.00033137,5]
[425818460,1781933452000,-200.0,0.0003314,60]
[425818456,1781933452000,-168.22862446,0.0003312,30]
[425818453,1781933452000,-1707.74781486,0.000331,2]
[425818452,1781933452000,-16598.14078943,0.000331,2]
[425818458,1781933452000,-413.0,0.00033123,120]
[425818455,1781933452000,-3941.43,0.00033115,2]
[425818484,1781933453000,-1000.0,0.00033199,120]
[425818485,1781933453000,-283923.21604443,0.000332,2]
[425818488,1781933453000,-17150.67341363,0.00021859,2]
[425818487,1781933453000,-15679.09,0.0002,2]
[425818486,1781933453000,-861.99183634,0.000332,2]
[425818515,1781933454000,-1000.0,0.00033262,120]
[425818519,1781933454000,-700.0,0.0003327,2]
[425818518,1781933454000,-22500.0,0.00033263,2]
[425818523,1781933454000,-5000.0,0.00033291,2]
[425818520,1781933454000,-15000.0,0.0003328,2]
[425818524,1781933454000,-5000.0,0.00033291,2]
[425818521,1781933454000,-5037.3239473,0.00033291,2]
[425818525,1781933454000,-5000.0,0.00033291,2]
[425818522,1781933454000,-5000.0,0.00033291,2]
[425818526,1781933454000,-5021.55883199,0.00033292,2]
[425818527,1781933454000,-150.0,0.00033292,30]
[425818529,1781933454000,-150.0,0.00033326,30]
[425818535,1781933454000,-22500.0,0.0003335,2]
[425818531,1781933454000,-200.0,0.0003333,2]
[425818533,1781933454000,-4580.09,0.00033342,2]
[425818532,1781933454000,-200.0,0.0003333,2]
[425818534,1781933454000,-163.91285858,0.00033348,2]
[425818536,1781933454000,-15000.0,0.0003335,2]
[425818538,1781933454000,-152.0,0.00033354,30]
[425818548,1781933454000,-22500.0,0.00033438,2]
[425818539,1781933454000,-456.31303523,0.00033367,2]
[425818537,1781933454000,-22500.0,0.0003335,2]
[425818540,1781933454000,-156.927105,0.00033377,120]
[425818517,1781933454000,-4159.65,0.00033263,2]
[425818528,1781933454000,-10000.0,0.000333,120]
[425818516,1781933454000,-22500.0,0.00033263,2]
[425818495,1781933454000,-384.78176723,0.00032759,30]
[425818512,1781933454000,-350.0,0.00033234,2]
[425818541,1781933454000,-150.0,0.00033392,30]
[425818490,1781933454000,-199.65,0.0002863,30]
[425818491,1781933454000,-199.65,0.00028797,7]
[425818489,1781933454000,-661.1225485,0.00028388,2]
[425818493,1781933454000,-180.978146,0.00029397,7]
[425818492,1781933454000,-199.65,0.00028964,2]
[425818499,1781933454000,-151.0,0.00032759,30]
[425818497,1781933454000,-151.0,0.00032759,30]
[425818494,1781933454000,-997.16350561,0.00032759,30]
[425818496,1781933454000,-500.0,0.00032759,30]
[425818501,1781933454000,-661.1225485,0.0003319,2]
[425818513,1781933454000,-4580.09,0.00033239,2]
[425818500,1781933454000,-661.1225485,0.00032913,2]
[425818498,1781933454000,-151.0,0.00032759,30]
[425818502,1781933454000,-173423.72569482,0.000332,2]
[425818504,1781933454000,-628032.64782465,0.000332,2]
[425818511,1781933454000,-4868.69,0.00033233,2]
[425818505,1781933454000,-1999.0,0.000332,30]
[425818507,1781933454000,-15000.0,0.0003321,2]
[425818509,1781933454000,-10000.0,0.00033233,2]
[425818510,1781933454000,-10000.0,0.00033233,2]
[425818508,1781933454000,-150.0,0.00033213,30]
[425818506,1781933454000,-15000.0,0.0003321,2]
[425818514,1781933454000,-500.0,0.00033262,120]
[425818503,1781933454000,-653.25782122,0.000332,2]
[425818547,1781933454000,-597.46,0.00033425,30]
[425818530,1781933454000,-193.88808942,0.0003333,2]
[425818545,1781933454000,-317.29,0.00033417,120]
[425818571,1781933454000,-22500.0,0.00033613,2]
[425818570,1781933454000,-150.0,0.00033591,30]